Workbook

Sheet 综合成绩 排名
A1: 附件1：
A2: 南昌高新区2022年中小学教师招聘入闱体检人员名单
A3: 乘车序号 | B3: 姓名 | C3: 准考证号 | D3: 岗位代码 | E3: 报考岗位 | F3: 面试成绩 | G3: 笔试成绩 | H3: 综合成绩 | I3: 排名 | J3: 是否入围 | K3: 备注
A4: 1 | B4: 姜沙灵 | C4: 236010302014,136010302014 | D4: 100200101010 | E4: 小学语文 | F4: 93.20 | G4: 208.0 | H4: =F4*50/100+G4*(50/250) -> 88.20 | I4: 1 | J4: 是
A5: 2 | B5: 胡醒 | C5: 136010502212,236010502212 | D5: 100200101010 | E5: 小学语文 | F5: 91.40 | G5: 195.0 | H5: 84.70 | I5: 2 | J5: 是
A6: 3 | B6: 汪红华 | C6: 136040201216,236040201216 | D6: 100200101010 | E6: 小学语文 | F6: 91.20 | G6: 191.5 | H6: 83.90 | I6: 3 | J6: 是
A7: 4 | B7: 夏子衿 | C7: 236010101218,136010101218 | D7: 100200101010 | E7: 小学语文 | F7: 90.00 | G7: 193.5 | H7: 83.70 | I7: 4 | J7: 是
A8: 5 | B8: 曹文婷 | C8: 136010303317,236010303317 | D8: 100200101010 | E8: 小学语文 | F8: 91.40 | G8: 186.0 | H8: 82.90 | I8: 5 | J8: 是
A9: 6 | B9: 何智辰 | C9: 136010201829,236010201829 | D9: 100200101010 | E9: 小学语文 | F9: 81.80 | G9: 192.5 | H9: 79.40 | I9: 6 | J9: 是
A10: 7 | B10: 孔晓敏 | C10: 136010100126,236010100126 | D10: 100200101010 | E10: 小学语文 | F10: 83.60 | G10: 186.5 | H10: 79.10 | I10: 7 | J10: 是
A11: 8 | B11: 李钰恬 | C11: 236010304421,136010304421 | D11: 100200101011 | E11: 小学语文(应届） | F11: 90.10 | G11: 194.0 | H11: 83.85 | I11: 1 | J11: 是
A12: 9 | B12: 侯丽雯 | C12: 136010502919,236010502919 | D12: 100200101011 | E12: 小学语文(应届） | F12: 87.20 | G12: 196.5 | H12: 82.90 | I12: 2 | J12: 是
A13: 10 | B13: 严诗颖 | C13: 236010301923,136010301923 | D13: 100200101011 | E13: 小学语文(应届） | F13: 83.70 | G13: 203.5 | H13: 82.55 | I13: 3 | J13: 是
A14: 11 | B14: 李倩 | C14: 236010500603,136010500603 | D14: 100200101011 | E14: 小学语文(应届） | F14: 85.20 | G14: 186.0 | H14: 79.80 | I14: 4 | J14: 是
A15: 12 | B15: 王丽琴 | C15: 136010502701,236010502701 | D15: 100200101011 | E15: 小学语文(应届） | F15: 80.80 | G15: 193.5 | H15: 79.10 | I15: 5 | J15: 是
A16: 13 | B16: 银婷婷 | C16: 136010201728,236010201728 | D16: 100200101011 | E16: 小学语文(应届） | F16: 85.00 | G16: 178.5 | H16: 78.20 | I16: 6 | J16: 是
A17: 14 | B17: 张琴园 | C17: 136010101515,236010101515 | D17: 100200101011 | E17: 小学语文(应届） | F17: 85.90 | G17: 174.0 | H17: 77.75 | I17: 7 | J17: 是
A18: 15 | B18: 魏欢欢 | C18: 136010703103,236010703103 | D18: 100200102012 | E18: 小学数学 | F18: 88.20 | G18: 227.5 | H18: 89.60 | I18: 1 | J18: 是
A19: 16 | B19: 邹倩云 | C19: 236010702902,136010702902 | D19: 100200102012 | E19: 小学数学 | F19: 87.20 | G19: 219.0 | H19: 87.40 | I19: 2 | J19: 是
A20: 17 | B20: 刘亚男 | C20: 236010801007,136010801007 | D20: 100200102012 | E20: 小学数学 | F20: 86.40 | G20: 216.5 | H20: 86.50 | I20: 3 | J20: 是
A21: 18 | B21: 吕超霞 | C21: 136010802601,236010802601 | D21: 100200102012 | E21: 小学数学 | F21: 84.20 | G21: 219.5 | H21: 86.00 | I21: 4 | J21: 是 | K21: 面试成绩高者
A22: 19 | B22: 何瑾 | C22: 136010801804,236010801804 | D22: 100200102013 | E22: 小学数学（应届） | F22: 87.40 | G22: 219.5 | H22: 87.60 | I22: 1 | J22: 是
A23: 20 | B23: 康敏欣 | C23: 236010700511,136010700511 | D23: 100200102013 | E23: 小学数学（应届） | F23: 87.40 | G23: 217.5 | H23: 87.20 | I23: 2 | J23: 是
A24: 21 | B24: 杨佳欢 | C24: 136010702717,236010702717 | D24: 100200102013 | E24: 小学数学（应届） | F24: 86.40 | G24: 219.5 | H24: 87.10 | I24: 3 | J24: 是
A25: 22 | B25: 王瑶 | C25: 236010503101,136010503101 | D25: 100200102013 | E25: 小学数学（应届） | F25: 84.20 | G25: 222.0 | H25: 86.50 | I25: 4 | J25: 是
A26: 23 | B26: 熊逆健 | C26: 136011101609,236011101609 | D26: 100200103014 | E26: 小学英语 | F26: 88.80 | G26: 210.0 | H26: 86.40 | I26: 1 | J26: 是
A27: 24 | B27: 孔格 | C27: 136011103402,236011103402 | D27: 100200103014 | E27: 小学英语 | F27: 86.00 | G27: 210.0 | H27: 85.00 | I27: 2 | J27: 是
A28: 25 | B28: 余雪芹 | C28: 136011100412,236011100412 | D28: 100200103014 | E28: 小学英语 | F28: 81.40 | G28: 214.5 | H28: 83.60 | I28: 3 | J28: 是
A29: 26 | B29: 罗敏 | C29: 236221700812,136221700812 | D29: 100200103014 | E29: 小学英语 | F29: 81.20 | G29: 214.0 | H29: 83.40 | I29: 4 | J29: 是
A30: 27 | B30: 舒婷 | C30: 136011103426,236011103426 | D30: 100200103015 | E30: 小学英语（应届） | F30: 85.40 | G30: 208.0 | H30: 84.30 | I30: 1 | J30: 是
A31: 28 | B31: 梅浔芸 | C31: 136040101425,236040101425 | D31: 100200103015 | E31: 小学英语（应届） | F31: 83.80 | G31: 201.0 | H31: 82.10 | I31: 2 | J31: 是
A32: 29 | B32: 黄盈 | C32: 136040101101,236040101101 | D32: 100200103015 | E32: 小学英语（应届） | F32: 81.20 | G32: 207.0 | H32: 82.00 | I32: 3 | J32: 是 | K32: 笔试专业成绩高者
A33: 30 | B33: 尧梦妮 | C33: 136011201702,236011201702 | D33: 100200109018 | E33: 小学音乐 | F33: 88.40 | G33: 201.0 | H33: =F33*(60/100)+G33*(40/250) -> 85.20 | I33: 1 | J33: 是
A34: 31 | B34: 刘炫然 | C34: 236011200621,136011200621 | D34: 100200109018 | E34: 小学音乐 | F34: 88.00 | G34: 184.0 | H34: 82.24 | I34: 2 | J34: 是
A35: 32 | B35: 李文琪 | C35: 236011200711,136011200711 | D35: 100200109018 | E35: 小学音乐 | F35: 91.40 | G35: 166.5 | H35: 81.48 | I35: 3 | J35: 是
A36: 33 | B36: 梁杨 | C36: 236011200304,136011200304 | D36: 100200109019 | E36: 小学音乐（应届） | F36: 90.20 | G36: 184.5 | H36: 83.64 | I36: 1 | J36: 是
A37: 34 | B37: 程誉 | C37: 136011103813,236011103813 | D37: 100200109019 | E37: 小学音乐（应届） | F37: 83.80 | G37: 144.0 | H37: 73.32 | I37: 2 | J37: 是
A38: 35 | B38: 张钰钧 | C38: 236011202820,136011202820 | D38: 100200110022 | E38: 小学美术 | F38: 84.80 | G38: 209.5 | H38: 84.40 | I38: 1 | J38: 是
A39: 36 | B39: 胡娣娣 | C39: 236011202709,136011202709 | D39: 100200110022 | E39: 小学美术 | F39: 85.40 | G39: 205.5 | H39: 84.12 | I39: 2 | J39: 是
A40: 37 | B40: 杨欣懿 | C40: 136011203230,236011203230 | D40: 100200110023 | E40: 小学美术（应届） | F40: 85.60 | G40: 209.5 | H40: 84.88 | I40: 1 | J40: 是
A41: 38 | B41: 罗莎 | C41: 236011201818,136011201818 | D41: 100200110023 | E41: 小学美术（应届） | F41: 86.40 | G41: 195.5 | H41: 83.12 | I41: 2 | J41: 是
A42: 39 | B42: 李瑶琴 | C42: 136040306718,236040306718 | D42: 100200111026 | E42: 小学科学 | F42: 84.80 | G42: 213.5 | H42: =F42*50/100+G42*(50/250) -> 85.10 | I42: 1 | J42: 是
A43: 40 | B43: 杨婷 | C43: 136060103710,236060103710 | D43: 100200111026 | E43: 小学科学 | F43: 83.20 | G43: 205.5 | H43: =F43*50/100+G43*(50/250) -> 82.70 | I43: 2 | J43: 是
A44: 41 | B44: 王强 | C44: 236011300322,136011300322 | D44: 100200111026 | E44: 小学科学 | F44: 86.80 | G44: 192.0 | H44: =F44*50/100+G44*(50/250) -> 81.80 | I44: 3 | J44: 是
A45: 42 | B45: 熊娟 | C45: 136011300606,236011300606 | D45: 100200111027 | E45: 小学科学（应届） | F45: 83.00 | G45: 185.0 | H45: =F45*50/100+G45*(50/250) -> 78.50 | I45: 1 | J45: 是
A46: 43 | B46: 陈美燕 | C46: 236011300118,136011300118 | D46: 100200111027 | E46: 小学科学（应届） | F46: 79.60 | G46: 184.5 | H46: =F46*50/100+G46*(50/250) -> 76.70 | I46: 2 | J46: 是 | K46: 面试成绩高者
A47: 44 | B47: 董瑞旗 | C47: 236011301509,136011301509 | D47: 100200112016 | E47: 小学体育与健康 | F47: 78.00 | G47: 173.5 | H47: =F47*(60/100)+G47*(40/250) -> 74.56 | I47: 1 | J47: 是
A48: 45 | B48: 万艺玲 | C48: 236011301513,136011301513 | D48: 100200112016 | E48: 小学体育与健康 | F48: 82.60 | G48: 115.0 | H48: =F48*(60/100)+G48*(40/250) -> 67.96 | I48: 2 | J48: 是
A49: 46 | B49: 孙小鑫 | C49: 236011301827,136011301827 | D49: 100200112016 | E49: 小学体育与健康 | F49: 74.60 | G49: 141.5 | H49: =F49*(60/100)+G49*(40/250) -> 67.40 | I49: 3 | J49: 是
A50: 47 | B50: 杨欣萍 | C50: 236011301306,136011301306 | D50: 100200112017 | E50: 小学体育与健康（应届） | F50: 87.00 | G50: 133.0 | H50: =F50*(60/100)+G50*(40/250) -> 73.48 | I50: 1 | J50: 是
A51: 48 | B51: 金从泽 | C51: 236011300915,136011300915 | D51: 100200112017 | E51: 小学体育与健康（应届） | F51: 81.20 | G51: 136.5 | H51: =F51*(60/100)+G51*(40/250) -> 70.56 | I51: 2 | J51: 是
A52: 49 | B52: 李月月 | C52: 236040400205,136040400205 | D52: 100200114024 | E52: 小学道德与法治 | F52: 85.00 | G52: 154.0 | H52: =F52*50/100+G52*(50/250) -> 73.30 | I52: 1 | J52: 是
A53: 50 | B53: 舒媛 | C53: 236011400210,136011400210 | D53: 100200114025 | E53: 小学道德与法治（应届） | F53: 90.00 | G53: 171.5 | H53: 79.30 | I53: 1 | J53: 是
A54: 51 | B54: 程欢 | C54: 136011401829,236011401829 | D54: 100200118020 | E54: 小学 综合实践活动（含信息技术） | F54: 84.60 | G54: 204.0 | H54: 83.10 | I54: 1 | J54: 是
A55: 52 | B55: 梅黄笑 | C55: 236011401421,136011401421 | D55: 100200118020 | E55: 小学 综合实践活动（含信息技术） | F55: 83.80 | G55: 205.5 | H55: 83.00 | I55: 2 | J55: 是
A56: 53 | B56: 方欣怡 | C56: 136011401805,236011401805 | D56: 100200118021 | E56: 小学 综合实践活动（含信息技术）（应届） | F56: 87.20 | G56: 201.0 | H56: 83.80 | I56: 1 | J56: 是
A57: 54 | B57: 王霜 | C57: 236011401913,136011401913 | D57: 100200118021 | E57: 小学 综合实践活动（含信息技术）（应届） | F57: 85.60 | G57: 200.0 | H57: 82.80 | I57: 2 | J57: 是
A58: 55 | B58: 陈红艳 | C58: 136011402827,236011402827 | D58: 100200201028 | E58: 初中语文 | F58: 87.00 | G58: 209.5 | H58: 85.40 | I58: 1 | J58: 是
A59: 56 | B59: 付璐 | C59: 136011500126,236011500126 | D59: 100200201028 | E59: 初中语文 | F59: 86.00 | G59: 198.5 | H59: 82.70 | I59: 2 | J59: 是
A60: 57 | B60: 何丹 | C60: 236210503613,136210503613 | D60: 100200201028 | E60: 初中语文 | F60: 84.40 | G60: 196.0 | H60: 81.40 | I60: 3 | J60: 是
A61: 58 | B61: 徐旖茜 | C61: 136011403906,236011403906 | D61: 100200201028 | E61: 初中语文 | F61: 83.20 | G61: 198.5 | H61: 81.30 | I61: 4 | J61: 是
A62: 59 | B62: 万紫轩 | C62: 236011403721,136011403721 | D62: 100200201029 | E62: 初中语文（应届） | F62: 83.40 | G62: 204.0 | H62: 82.50 | I62: 1 | J62: 是
A63: 60 | B63: 邓文琪 | C63: 136011403508,236011403508 | D63: 100200201029 | E63: 初中语文（应届） | F63: 84.40 | G63: 201.0 | H63: 82.40 | I63: 2 | J63: 是
A64: 61 | B64: 李沛瑶 | C64: 136011502729,236011502729 | D64: 100200201029 | E64: 初中语文（应届） | F64: 84.80 | G64: 197.5 | H64: 81.90 | I64: 3 | J64: 是
A65: 62 | B65: 杨文静 | C65: 236011600325,136011600325 | D65: 100200202030 | E65: 初中数学 | F65: 88.40 | G65: 209.0 | H65: 86.00 | I65: 1 | J65: 是
A66: 63 | B66: 熊艳华 | C66: 136011503225,236011503225 | D66: 100200202030 | E66: 初中数学 | F66: 86.60 | G66: 213.0 | H66: 85.90 | I66: 2 | J66: 是
A67: 64 | B67: 黄焱鑫 | C67: 136011601127,236011601127 | D67: 100200202030 | E67: 初中数学 | F67: 85.92 | G67: 211.0 | H67: 85.16 | I67: 3 | J67: 是
A68: 65 | B68: 徐潇亮 | C68: 236011503118,136011503118 | D68: 100200202031 | E68: 初中数学（应届） | F68: 84.80 | G68: 215.0 | H68: 85.40 | I68: 1 | J68: 是
A69: 66 | B69: 骆云 | C69: 236011503910,136011503910 | D69: 100200202031 | E69: 初中数学（应届） | F69: 84.60 | G69: 200.0 | H69: 82.30 | I69: 2 | J69: 是
A70: 67 | B70: 周岭 | C70: 136011503811,236011503811 | D70: 100200202031 | E70: 初中数学（应届） | F70: 80.20 | G70: 209.5 | H70: 82.00 | I70: 3 | J70: 是
A71: 68 | B71: 熊珊珊 | C71: 236040503707,136040503707 | D71: 100200203033 | E71: 初中英语 | F71: 88.00 | G71: 209.5 | H71: 85.90 | I71: 1 | J71: 是
A72: 69 | B72: 李佳丽 | C72: 136011602225,236011602225 | D72: 100200203033 | E72: 初中英语 | F72: 84.20 | G72: 205.5 | H72: 83.20 | I72: 2 | J72: 是
A73: 70 | B73: 黄瑾雯 | C73: 236011602123,136011602123 | D73: 100200203034 | E73: 初中英语（应届） | F73: 87.20 | G73: 207.5 | H73: 85.10 | I73: 1 | J73: 是
A74: 71 | B74: 李佳琦 | C74: 136011603309,236011603309 | D74: 100200203034 | E74: 初中英语（应届） | F74: 85.00 | G74: 208.5 | H74: 84.20 | I74: 2 | J74: 是
A75: 72 | B75: 杨江玲 | C75: 236011703115,136011703115 | D75: 100200204040 | E75: 初中历史 | F75: 82.40 | G75: 202.0 | H75: 81.60 | I75: 1 | J75: 是
A76: 73 | B76: 陈波 | C76: 236011703312,136011703312 | D76: 100200204040 | E76: 初中历史 | F76: 88.40 | G76: 184.5 | H76: 81.10 | I76: 2 | J76: 是
A77: 74 | B77: 史昕颖 | C77: 236011703603,136011703603 | D77: 100200204041 | E77: 初中历史（应届） | F77: 85.00 | G77: 223.0 | H77: 87.10 | I77: 1 | J77: 是 | K77: 面试考场平均分83.11
A78: 75 | B78: 黄苏 | C78: 236011704619,136011704619 | D78: 100200205039 | E78: 初中地理 | F78: 88.40 | G78: 176.5 | H78: 79.50 | I78: 1 | J78: 是
A79: 76 | B79: 方玉霞 | C79: 236011704119,136011704119 | D79: 100200205039 | E79: 初中地理 | F79: 81.20 | G79: 189.5 | H79: 78.50 | I79: 2 | J79: 是
A80: 77 | B80: 赵佳蕾 | C80: 236011800604,136011800604 | D80: 100200206032 | E80: 初中物理 | F80: 84.80 | G80: 210.5 | H80: 84.50 | I80: 1 | J80: 是
A81: 78 | B81: 叶思妍 | C81: 236011801114,136011801114 | D81: 100200207036 | E81: 初中化学 | F81: 83.80 | G81: 209.0 | H81: 83.70 | I81: 1 | J81: 是
A82: 79 | B82: 魏玮 | C82: 236011901627,136011901627 | D82: 100200210044 | E82: 初中美术 | F82: 89.00 | G82: 199.5 | H82: =F82*(60/100)+G82*(40/250) -> 85.32 | I82: 1 | J82: 是
A83: 80 | B83: 涂瑶 | C83: 236011901107,136011901107 | D83: 100200210044 | E83: 初中美术 | F83: 87.00 | G83: 196.5 | H83: =F83*(60/100)+G83*(40/250) -> 83.64 | I83: 2 | J83: 是
A84: 81 | B84: 张天云 | C84: 136011902914,236011902914 | D84: 100200213035 | E84: 初中体育与健康 | F84: 82.00 | G84: 163.0 | H84: =F84*(60/100)+G84*(40/250) -> 75.28 | I84: 1 | J84: 是
A85: 82 | B85: 张莲莲 | C85: 236012001414,136012001414 | D85: 100200215037 | E85: 初中道德与法治 | F85: 86.60 | G85: 200.5 | H85: =F85*50/100+G85*(50/250) -> 83.40 | I85: 1 | J85: 是
A86: 83 | B86: 罗逸 | C86: 136012000928,236012000928 | D86: 100200215037 | E86: 初中道德与法治 | F86: 81.20 | G86: 206.0 | H86: 81.80 | I86: 2 | J86: 是
A87: 84 | B87: 王群 | C87: 236012001702,136012001702 | D87: 100200215037 | E87: 初中道德与法治 | F87: 81.00 | G87: 203.0 | H87: 81.10 | I87: 3 | J87: 是
A88: 85 | B88: 彭文慧 | C88: 236012002126,136012002126 | D88: 100200215038 | E88: 初中道德与法治（应届） | F88: 85.60 | G88: 212.0 | H88: 85.20 | I88: 1 | J88: 是
A89: 86 | B89: 汪妍 | C89: 236012001318,136012001318 | D89: 100200215038 | E89: 初中道德与法治（应届） | F89: 84.20 | G89: 193.5 | H89: 80.80 | I89: 2 | J89: 是
A90: 87 | B90: 郭志丹 | C90: 136012002209,236012002209 | D90: 100200218042 | E90: 初中综合实践活动（含信息技术） | F90: 86.40 | G90: 181.5 | H90: 79.50 | I90: 1 | J90: 是
A91: 88 | B91: 邓丽萍 | C91: 236012002404,136012002404 | D91: 100200218042 | E91: 初中综合实践活动（含信息技术） | F91: 76.80 | G91: 187.0 | H91: 75.80 | I91: 2 | J91: 是
A92: 89 | B92: 朱斐姝 | C92: 136210802321,236210802321 | D92: 100200218043 | E92: 初中综合实践活动（含信息技术）（应届） | F92: 86.20 | G92: 163.0 | H92: 75.70 | I92: 1 | J92: 是
